[Event "*** Titled Tuesday Blitz"]
[Site "Chess.com"]
[Date "2021.04.06"]
[Round "1"]
[White "ama18"]
[Black "Chopper1905"]
[Result "1-0"]
[WhiteElo "2498"]
[BlackElo "2941"]
[TimeControl "180+1"]
[EndTime "10:10:07 PDT"]
[Termination "ama18 won by checkmate"]

1. e4 {[%clk 0:03:00.9]} 1... c5 {[%clk 0:02:58.7]} 2. Nf3 {[%clk 0:03:01.2]}
2... Nc6 {[%clk 0:02:57.9]} 3. d4 {[%clk 0:03:01.7]} 3... cxd4 {[%clk
0:02:57.9]} 4. Nxd4 {[%clk 0:03:02.6]} 4... e6 {[%clk 0:02:58.3]} 5. Nc3 {[%clk
0:03:03.2]} 5... Qc7 {[%clk 0:02:57.7]} 6. g3 {[%clk 0:03:02.7]} 6... a6 {[%clk
0:02:57]} 7. Bg2 {[%clk 0:03:02.7]} 7... Nf6 {[%clk 0:02:57]} 8. O-O {[%clk
0:03:02.8]} 8... Bc5 {[%clk 0:02:55.6]} 9. Nb3 {[%clk 0:02:54.1]} 9... Ba7
{[%clk 0:02:53.4]} 10. Bf4 {[%clk 0:02:53.6]} 10... Ne5 {[%clk 0:02:51.4]} 11.
h3 {[%clk 0:02:48.2]} 11... d6 {[%clk 0:02:46]} 12. Qe2 {[%clk 0:02:33.9]} 12...
b5 {[%clk 0:02:38.3]} 13. a4 {[%clk 0:02:32.6]} 13... b4 {[%clk 0:02:32.7]} 14.
Na2 {[%clk 0:02:32.4]} 14... Rb8 {[%clk 0:02:29.8]} 15. Rac1 {[%clk 0:02:30.9]}
15... O-O {[%clk 0:02:11.1]} 16. Rfd1 {[%clk 0:02:27.7]} 16... h6 {[%clk
0:01:16]} 17. g4 {[%clk 0:02:14.3]} 17... a5 {[%clk 0:01:10.2]} 18. c3 {[%clk
0:02:05.1]} 18... bxc3 {[%clk 0:00:51.9]} 19. Rxc3 {[%clk 0:02:06]} 19... Qe7
{[%clk 0:00:41.5]} 20. Nxa5 {[%clk 0:01:48.4]} 20... Bd7 {[%clk 0:00:41.7]} 21.
b4 {[%clk 0:01:42.2]} 21... Bxa4 {[%clk 0:00:40.5]} 22. Rdc1 {[%clk 0:01:30.3]}
22... Bb5 {[%clk 0:00:40.5]} 23. Qd2 {[%clk 0:01:25.5]} 23... Bb6 {[%clk
0:00:38.6]} 24. Bxe5 {[%clk 0:01:17.3]} 24... dxe5 {[%clk 0:00:37.7]} 25. Nc6
{[%clk 0:01:17]} 25... Bxc6 {[%clk 0:00:33.6]} 26. Rxc6 {[%clk 0:01:17.5]} 26...
Rfd8 {[%clk 0:00:33.5]} 27. Qe2 {[%clk 0:01:09.5]} 27... Qa7 {[%clk 0:00:33.5]}
28. R6c2 {[%clk 0:01:04.4]} 28... Qa3 {[%clk 0:00:31.3]} 29. Qf3 {[%clk
0:00:59.2]} 29... Qa7 {[%clk 0:00:29.2]} 30. b5 {[%clk 0:00:45.6]} 30... Bd4
{[%clk 0:00:27.2]} 31. Bf1 {[%clk 0:00:43.3]} 31... Qa5 {[%clk 0:00:19.2]} 32.
Kg2 {[%clk 0:00:38.4]} 32... Nh7 {[%clk 0:00:17.8]} 33. Qb3 {[%clk 0:00:28.6]}
33... Nf8 {[%clk 0:00:17.5]} 34. Qb4 {[%clk 0:00:17.2]} 34... Qa8 {[%clk
0:00:16.4]} 35. Qb3 {[%clk 0:00:17.1]} 35... Qxe4+ {[%clk 0:00:15.8]} 36. Qf3
{[%clk 0:00:16.6]} 36... Qd5 {[%clk 0:00:13]} 37. Nb4 {[%clk 0:00:15.8]} 37...
Qxf3+ {[%clk 0:00:11]} 38. Kxf3 {[%clk 0:00:16.7]} 38... Ra8 {[%clk 0:00:09.7]}
39. Nc6 {[%clk 0:00:16.8]} 39... Rd7 {[%clk 0:00:09.5]} 40. Rd1 {[%clk
0:00:15.8]} 40... Ng6 {[%clk 0:00:09]} 41. Kg2 {[%clk 0:00:15.5]} 41... Nf4+
{[%clk 0:00:07]} 42. Kh2 {[%clk 0:00:15.2]} 42... Ra3 {[%clk 0:00:06.8]} 43. b6
{[%clk 0:00:12.2]} 43... Rb3 {[%clk 0:00:05.8]} 44. Nxe5 {[%clk 0:00:09.6]}
44... Rd5 {[%clk 0:00:03.3]} 45. Nc6 {[%clk 0:00:08.4]} 45... Bxb6 {[%clk
0:00:03.6]} 46. Ne7+ {[%clk 0:00:08.3]} 46... Kh7 {[%clk 0:00:03.8]} 47. Nxd5
{[%clk 0:00:09.2]} 47... Nxd5 {[%clk 0:00:04.3]} 48. Bc4 {[%clk 0:00:07.6]}
48... Rb4 {[%clk 0:00:03]} 49. Bxd5 {[%clk 0:00:07.3]} 49... exd5 {[%clk
0:00:03.9]} 50. Rxd5 {[%clk 0:00:07.9]} 50... Rf4 {[%clk 0:00:04.5]} 51. Kg2
{[%clk 0:00:08]} 51... Bd4 {[%clk 0:00:03.8]} 52. Rd2 {[%clk 0:00:07.5]} 52...
Bf6 {[%clk 0:00:03.8]} 53. Re2 {[%clk 0:00:07.8]} 53... Rb4 {[%clk 0:00:03.9]}
54. Rd7 {[%clk 0:00:07.9]} 54... Kg6 {[%clk 0:00:04.4]} 55. Kg3 {[%clk
0:00:07.5]} 55... Rb3+ {[%clk 0:00:04.6]} 56. f3 {[%clk 0:00:07.9]} 56... h5
{[%clk 0:00:04.9]} 57. gxh5+ {[%clk 0:00:06.9]} 57... Kxh5 {[%clk 0:00:05.8]}
58. Rxf7 {[%clk 0:00:06.9]} 58... Bh4+ {[%clk 0:00:05.8]} 59. Kg2 {[%clk
0:00:06.5]} 59... Bf6 {[%clk 0:00:06.7]} 60. Rd7 {[%clk 0:00:05.9]} 60... Rb5
{[%clk 0:00:07.3]} 61. Rd3 {[%clk 0:00:05.9]} 61... Rg5+ {[%clk 0:00:07.7]} 62.
Kh1 {[%clk 0:00:05.6]} 62... Ra5 {[%clk 0:00:08.6]} 63. Re4 {[%clk 0:00:06]}
63... g5 {[%clk 0:00:08]} 64. Kg2 {[%clk 0:00:06.4]} 64... Be5 {[%clk
0:00:08.5]} 65. Rde3 {[%clk 0:00:06.6]} 65... Bf4 {[%clk 0:00:08.1]} 66. Re2
{[%clk 0:00:07.1]} 66... Ra3 {[%clk 0:00:08.1]} 67. Re8 {[%clk 0:00:07.3]} 67...
Ra7 {[%clk 0:00:06.5]} 68. Rh8+ {[%clk 0:00:07.7]} 68... Kg6 {[%clk 0:00:07.1]}
69. Rg8+ {[%clk 0:00:08.2]} 69... Kf7 {[%clk 0:00:06.9]} 70. Rge8 {[%clk
0:00:09.1]} 70... Ra3 {[%clk 0:00:06.5]} 71. Rh8 {[%clk 0:00:08.4]} 71... Kg7
{[%clk 0:00:06.7]} 72. Rhe8 {[%clk 0:00:07.8]} 72... Kf7 {[%clk 0:00:07.1]} 73.
R8e4 {[%clk 0:00:08.7]} 73... Kg6 {[%clk 0:00:07]} 74. h4 {[%clk 0:00:09]} 74...
Kf5 {[%clk 0:00:04.7]} 75. hxg5 {[%clk 0:00:06.1]} 75... Bxg5 {[%clk 0:00:05.6]}
76. Re5+ {[%clk 0:00:06.1]} 76... Kg6 {[%clk 0:00:05.9]} 77. R2e4 {[%clk
0:00:06.1]} 77... Ra2+ {[%clk 0:00:05.1]} 78. Kg3 {[%clk 0:00:06.6]} 78... Ra1
{[%clk 0:00:06]} 79. Rg4 {[%clk 0:00:05.8]} 79... Kf6 {[%clk 0:00:03.9]} 80.
Rexg5 {[%clk 0:00:05.2]} 80... Rg1+ {[%clk 0:00:03.7]} 81. Kf4 {[%clk
0:00:05.6]} 81... Ra1 {[%clk 0:00:03.7]} 82. Rf5+ {[%clk 0:00:06]} 82... Ke7
{[%clk 0:00:04]} 83. Rg6 {[%clk 0:00:06.2]} 83... Ra4+ {[%clk 0:00:03.1]} 84.
Kg5 {[%clk 0:00:06.5]} 84... Ra1 {[%clk 0:00:04]} 85. Re5+ {[%clk 0:00:05.9]}
85... Kf7 {[%clk 0:00:04]} 86. Rf6+ {[%clk 0:00:06.3]} 86... Kg7 {[%clk
0:00:04.9]} 87. Kf5 {[%clk 0:00:06.7]} 87... Kg8 {[%clk 0:00:05.8]} 88. Re7
{[%clk 0:00:06.1]} 88... Ra5+ {[%clk 0:00:06.3]} 89. Kg6 {[%clk 0:00:06]} 89...
Ra8 {[%clk 0:00:05.8]} 90. Rg7+ {[%clk 0:00:05.5]} 90... Kh8 {[%clk 0:00:05.9]}
91. Rgf7 {[%clk 0:00:05.2]} 91... Kg8 {[%clk 0:00:05.9]} 92. Kg5 {[%clk
0:00:04.1]} 92... Ra5+ {[%clk 0:00:05.9]} 93. Kg6 {[%clk 0:00:04.4]} 93... Ra8
{[%clk 0:00:06.1]} 94. f4 {[%clk 0:00:04.7]} 94... Rb8 {[%clk 0:00:06.6]} 95. f5
{[%clk 0:00:05]} 95... Ra8 {[%clk 0:00:07.2]} 96. Kg5 {[%clk 0:00:05.1]} 96...
Kh8 {[%clk 0:00:07.2]} 97. Rh6+ {[%clk 0:00:04.5]} 97... Kg8 {[%clk 0:00:07.4]}
98. Rc7 {[%clk 0:00:04.6]} 98... Ra1 {[%clk 0:00:07]} 99. Rd6 {[%clk 0:00:04.4]}
99... Kh8 {[%clk 0:00:07.9]} 100. Rd8# {[%clk 0:00:04.3]} 1-0

[Event "*** Titled Tuesday Blitz"]
[Site "Chess.com"]
[Date "2021.04.06"]
[Round "2"]
[White "Rodchenkov_Vitalij"]
[Black "thechesscorner64"]
[Result "0-1"]
[WhiteElo "2171"]
[BlackElo "2421"]
[TimeControl "180+1"]
[EndTime "10:12:52 PDT"]
[Termination "thechesscorner64 won by resignation"]

1. Nf3 {[%clk 0:03:00.9]} 1... d5 {[%clk 0:02:59.3]} 2. d4 {[%clk 0:03:00.3]}
2... Nf6 {[%clk 0:02:54.6]} 3. g3 {[%clk 0:02:59]} 3... c5 {[%clk 0:02:54.2]} 4.
c4 {[%clk 0:02:55.9]} 4... e6 {[%clk 0:02:54]} 5. cxd5 {[%clk 0:02:54.4]} 5...
exd5 {[%clk 0:02:54.9]} 6. Bg2 {[%clk 0:02:54.1]} 6... Nc6 {[%clk 0:02:55.5]} 7.
O-O {[%clk 0:02:53.6]} 7... Be7 {[%clk 0:02:55.3]} 8. Nc3 {[%clk 0:02:52.7]}
8... O-O {[%clk 0:02:54.6]} 9. Bf4 {[%clk 0:02:51.9]} 9... a6 {[%clk 0:02:49.4]}
10. a3 {[%clk 0:02:49.2]} 10... cxd4 {[%clk 0:02:46.1]} 11. Nxd4 {[%clk
0:02:48.5]} 11... Bg4 {[%clk 0:02:46]} 12. h3 {[%clk 0:02:44.9]} 12... Be6
{[%clk 0:02:45.2]} 13. b4 {[%clk 0:02:40.2]} 13... Qd7 {[%clk 0:02:42.2]} 14.
Kh2 {[%clk 0:02:38.4]} 14... Rfe8 {[%clk 0:02:39.7]} 15. Rc1 {[%clk 0:02:35.4]}
15... Rac8 {[%clk 0:02:38.9]} 16. Qb3 {[%clk 0:02:35.1]} 16... Nxd4 {[%clk
0:02:37.8]} 0-1

[Event "*** Titled Tuesday Blitz"]
[Site "Chess.com"]
[Date "2021.04.06"]
[Round "2"]
[White "Susik_Gaboyan"]
[Black "GMRafpig"]
[Result "0-1"]
[WhiteElo "2273"]
[BlackElo "2611"]
[TimeControl "180+1"]
[EndTime "10:13:03 PDT"]
[Termination "GMRafpig won by resignation"]

1. Nf3 {[%clk 0:02:53.6]} 1... Nf6 {[%clk 0:02:55]} 2. g3 {[%clk 0:02:54.5]}
2... d5 {[%clk 0:02:54.2]} 3. Bg2 {[%clk 0:02:53.9]} 3... c6 {[%clk 0:02:54.6]}
4. O-O {[%clk 0:02:54.8]} 4... Bf5 {[%clk 0:02:54.8]} 5. d3 {[%clk 0:02:55.2]}
5... e6 {[%clk 0:02:55.2]} 6. Nc3 {[%clk 0:02:49.3]} 6... h6 {[%clk 0:02:52.9]}
7. Nd4 {[%clk 0:02:49.6]} 7... Bh7 {[%clk 0:02:51.5]} 8. e4 {[%clk 0:02:50.1]}
8... Be7 {[%clk 0:02:48]} 9. e5 {[%clk 0:02:31.8]} 9... Nfd7 {[%clk 0:02:46.7]}
10. Qg4 {[%clk 0:02:31.1]} 10... Nxe5 {[%clk 0:02:36]} 11. Qh4 {[%clk
0:02:19.2]} 11... Bxh4 {[%clk 0:02:34.8]} 0-1

[Event "*** Titled Tuesday Blitz"]
[Site "Chess.com"]
[Date "2021.04.06"]
[Round "2"]
[White "mr_gustavo"]
[Black "C_K_G"]
[Result "1-0"]
[WhiteElo "2379"]
[BlackElo "2030"]
[TimeControl "180+1"]
[EndTime "10:13:14 PDT"]
[Termination "mr_gustavo won by resignation"]

1. e4 {[%clk 0:03:00.9]} 1... c5 {[%clk 0:02:59.9]} 2. Nf3 {[%clk 0:03:00.9]}
2... d6 {[%clk 0:03:00.2]} 3. d4 {[%clk 0:03:00.1]} 3... cxd4 {[%clk 0:03:01.1]}
4. Nxd4 {[%clk 0:03:01]} 4... Nf6 {[%clk 0:03:01.1]} 5. Nc3 {[%clk 0:03:01.3]}
5... a6 {[%clk 0:03:01.5]} 6. Bg5 {[%clk 0:03:00.8]} 6... e6 {[%clk 0:03:01.6]}
7. f4 {[%clk 0:03:01.3]} 7... Be7 {[%clk 0:03:01.8]} 8. Qf3 {[%clk 0:02:59.9]}
8... Qc7 {[%clk 0:03:01.5]} 9. O-O-O {[%clk 0:02:59.5]} 9... Nbd7 {[%clk
0:03:00.8]} 10. Bd3 {[%clk 0:02:59.6]} 10... b6 {[%clk 0:02:57.5]} 11. Rhe1
{[%clk 0:02:58.6]} 11... Bb7 {[%clk 0:02:57.4]} 12. Kb1 {[%clk 0:02:57.8]} 12...
h6 {[%clk 0:02:54.3]} 13. Bh4 {[%clk 0:02:47.7]} 13... Nxe4 {[%clk 0:02:34.1]}
14. Bxe4 {[%clk 0:02:48]} 14... Bxe4 {[%clk 0:02:32.9]} 15. Qxe4 {[%clk
0:02:48]} 15... d5 {[%clk 0:02:03.8]} 16. Nxd5 {[%clk 0:02:46.7]} 16... Qb7
{[%clk 0:02:03.8]} 17. Nf6+ {[%clk 0:02:46.1]} 1-0

[Event "*** Titled Tuesday Blitz"]
[Site "Chess.com"]
[Date "2021.04.06"]
[Round "2"]
[White "ahmad_alkhatib11"]
[Black "friesnielsen2302"]
[Result "0-1"]
[WhiteElo "2293"]
[BlackElo "2541"]
[TimeControl "180+1"]
[EndTime "10:13:38 PDT"]
[Termination "friesnielsen2302 won by resignation"]

1. Nf3 {[%clk 0:02:55.8]} 1... d6 {[%clk 0:02:55.4]} 2. d4 {[%clk 0:02:54.7]}
2... f5 {[%clk 0:02:55.5]} 3. Nc3 {[%clk 0:02:53]} 3... Nf6 {[%clk 0:02:55.9]}
4. Bg5 {[%clk 0:02:51.4]} 4... d5 {[%clk 0:02:56.1]} 5. Bxf6 {[%clk 0:02:48.2]}
5... exf6 {[%clk 0:02:56]} 6. e3 {[%clk 0:02:43.8]} 6... c6 {[%clk 0:02:55.8]}
7. Bd3 {[%clk 0:02:43.5]} 7... Bd6 {[%clk 0:02:55.5]} 8. O-O {[%clk 0:02:39.4]}
8... g6 {[%clk 0:02:54.7]} 9. Ne2 {[%clk 0:02:38.1]} 9... Be6 {[%clk 0:02:53.8]}
10. Rc1 {[%clk 0:02:35.2]} 10... b5 {[%clk 0:02:48.3]} 11. b3 {[%clk 0:02:27.5]}
11... Ba3 {[%clk 0:02:47.7]} 12. Rb1 {[%clk 0:02:26.4]} 12... Nd7 {[%clk
0:02:47.5]} 13. c4 {[%clk 0:02:05.5]} 13... bxc4 {[%clk 0:02:46.3]} 14. bxc4
{[%clk 0:02:05.3]} 14... dxc4 {[%clk 0:02:46.8]} 15. Bxc4 {[%clk 0:01:53.4]}
15... Bxc4 {[%clk 0:02:46]} 16. Qa4 {[%clk 0:01:43.7]} 16... Bxe2 {[%clk
0:02:45.4]} 0-1

[Event "*** Titled Tuesday Blitz"]
[Site "Chess.com"]
[Date "2021.04.06"]
[Round "2"]
[White "andrewtnb"]
[Black "gisela_roque"]
[Result "1-0"]
[WhiteElo "2359"]
[BlackElo "1755"]
[TimeControl "180+1"]
[EndTime "10:13:50 PDT"]
[Termination "andrewtnb won by resignation"]

1. d4 {[%clk 0:03:00.9]} 1... e6 {[%clk 0:02:59.6]} 2. c4 {[%clk 0:02:58]} 2...
Nf6 {[%clk 0:02:58.7]} 3. Nc3 {[%clk 0:02:57.2]} 3... Bb4 {[%clk 0:02:58.5]} 4.
e3 {[%clk 0:02:57.2]} 4... c5 {[%clk 0:02:51.8]} 5. Ne2 {[%clk 0:02:55.7]} 5...
O-O {[%clk 0:02:47.8]} 6. a3 {[%clk 0:02:55]} 6... Ba5 {[%clk 0:02:47.6]} 7.
dxc5 {[%clk 0:02:53.7]} 7... Bc7 {[%clk 0:02:39.7]} 8. b4 {[%clk 0:02:39.6]}
8... Nc6 {[%clk 0:02:38.5]} 9. Bb2 {[%clk 0:02:36.8]} 9... a5 {[%clk 0:02:36.1]}
10. b5 {[%clk 0:02:36.6]} 10... Ne5 {[%clk 0:02:35.8]} 11. Nf4 {[%clk
0:02:29.2]} 11... Qe7 {[%clk 0:02:35.1]} 12. a4 {[%clk 0:02:25.9]} 12... Qxc5
{[%clk 0:02:32.2]} 13. Ba3 {[%clk 0:02:25.8]} 13... Qb6 {[%clk 0:02:19.8]} 14.
c5 {[%clk 0:02:24.5]} 14... Qa7 {[%clk 0:02:18.5]} 15. b6 {[%clk 0:02:24.4]}
15... Bxb6 {[%clk 0:02:18.5]} 16. Nb5 {[%clk 0:02:16.4]} 16... Qb8 {[%clk
0:02:10.4]} 17. cxb6 {[%clk 0:02:16]} 17... Rd8 {[%clk 0:01:59.3]} 18. Bd6
{[%clk 0:02:15.8]} 1-0

[Event "*** Titled Tuesday Blitz"]
[Site "Chess.com"]
[Date "2021.04.06"]
[Round "2"]
[White "rugbyclub"]
[Black "shnitez"]
[Result "0-1"]
[WhiteElo "2257"]
[BlackElo "2479"]
[TimeControl "180+1"]
[EndTime "10:13:59 PDT"]
[Termination "shnitez won by resignation"]

1. e4 {[%clk 0:03:00.9]} 1... c5 {[%clk 0:02:59.4]} 2. Nc3 {[%clk 0:02:59.8]}
2... Nc6 {[%clk 0:02:58.9]} 3. Bb5 {[%clk 0:02:58.4]} 3... Nd4 {[%clk
0:02:58.5]} 4. Nf3 {[%clk 0:02:57.4]} 4... a6 {[%clk 0:02:52]} 5. Bd3 {[%clk
0:02:54.6]} 5... g6 {[%clk 0:02:49.7]} 6. Nxd4 {[%clk 0:02:47.1]} 6... cxd4
{[%clk 0:02:50.6]} 7. Ne2 {[%clk 0:02:47.5]} 7... Bg7 {[%clk 0:02:51.2]} 8. O-O
{[%clk 0:02:47.6]} 8... d6 {[%clk 0:02:51.2]} 9. c3 {[%clk 0:02:43.3]} 9... dxc3
{[%clk 0:02:52.1]} 10. dxc3 {[%clk 0:02:42.7]} 10... Nf6 {[%clk 0:02:51.7]} 11.
Be3 {[%clk 0:02:42.5]} 11... Ng4 {[%clk 0:02:45]} 12. Bg5 {[%clk 0:02:38.2]}
12... h6 {[%clk 0:02:44.3]} 13. Bh4 {[%clk 0:02:37]} 13... g5 {[%clk 0:02:40.1]}
14. Bg3 {[%clk 0:02:35.1]} 14... h5 {[%clk 0:02:39.5]} 15. h3 {[%clk 0:02:34.2]}
15... h4 {[%clk 0:02:39.8]} 16. hxg4 {[%clk 0:02:26.3]} 16... hxg3 {[%clk
0:02:39.7]} 17. Nxg3 {[%clk 0:02:26.8]} 17... Be5 {[%clk 0:02:17.3]} 18. Re1
{[%clk 0:02:09.3]} 18... Bxg3 {[%clk 0:02:12.3]} 19. fxg3 {[%clk 0:02:05.6]}
19... Qb6+ {[%clk 0:02:12.5]} 20. Kf1 {[%clk 0:02:04]} 20... Rh1+ {[%clk
0:02:09.2]} 21. Ke2 {[%clk 0:02:03.1]} 21... Bxg4+ {[%clk 0:02:09.4]} 0-1

[Event "*** Titled Tuesday Blitz"]
[Site "Chess.com"]
[Date "2021.04.06"]
[Round "2"]
[White "Fraler15"]
[Black "Mihnea2017"]
[Result "0-1"]
[WhiteElo "2234"]
[BlackElo "2459"]
[TimeControl "180+1"]
[EndTime "10:14:28 PDT"]
[Termination "Mihnea2017 won by resignation"]

1. e4 {[%clk 0:03:00.9]} 1... c6 {[%clk 0:02:57.6]} 2. d4 {[%clk 0:02:59.7]}
2... d5 {[%clk 0:02:56.5]} 3. f3 {[%clk 0:03:00.3]} 3... e6 {[%clk 0:02:53.1]}
4. Nc3 {[%clk 0:02:58.6]} 4... Bb4 {[%clk 0:02:49.5]} 5. Ne2 {[%clk 0:02:50.7]}
5... Ne7 {[%clk 0:02:48.9]} 6. a3 {[%clk 0:02:48.5]} 6... Ba5 {[%clk 0:02:46.6]}
7. Be3 {[%clk 0:02:48]} 7... c5 {[%clk 0:02:31.4]} 8. dxc5 {[%clk 0:02:40.1]}
8... Nbc6 {[%clk 0:02:31.7]} 9. Qd2 {[%clk 0:02:25.1]} 9... b6 {[%clk
0:02:16.5]} 10. b4 {[%clk 0:02:15.4]} 10... bxc5 {[%clk 0:02:16.8]} 11. bxa5
{[%clk 0:02:14]} 11... d4 {[%clk 0:02:17.3]} 12. Nxd4 {[%clk 0:01:54.9]} 12...
cxd4 {[%clk 0:02:17.3]} 13. Bb5 {[%clk 0:01:54.8]} 13... dxe3 {[%clk 0:02:13.7]}
14. Qxe3 {[%clk 0:01:52.9]} 14... O-O {[%clk 0:02:11.5]} 15. O-O {[%clk
0:01:49.7]} 15... Qc7 {[%clk 0:02:08.3]} 16. e5 {[%clk 0:01:36.7]} 16... Qxe5
{[%clk 0:02:04.6]} 17. Qd2 {[%clk 0:01:33.7]} 17... Qd4+ {[%clk 0:02:02.4]} 0-1

[Event "*** Titled Tuesday Blitz"]
[Site "Chess.com"]
[Date "2021.04.06"]
[Round "2"]
[White "DonBroca"]
[Black "Blitzking642"]
[Result "0-1"]
[WhiteElo "2216"]
[BlackElo "2446"]
[TimeControl "180+1"]
[EndTime "10:14:29 PDT"]
[Termination "Blitzking642 won by resignation"]

1. e4 {[%clk 0:03:00.9]} 1... c5 {[%clk 0:02:59.7]} 2. Nf3 {[%clk 0:03:00.2]}
2... Nc6 {[%clk 0:03:00.1]} 3. d4 {[%clk 0:03:00.6]} 3... cxd4 {[%clk 0:03:01]}
4. Nxd4 {[%clk 0:03:00.9]} 4... g6 {[%clk 0:03:01.4]} 5. c4 {[%clk 0:02:59.1]}
5... Nf6 {[%clk 0:03:01.4]} 6. Be3 {[%clk 0:02:59.6]} 6... d6 {[%clk 0:02:59.4]}
7. Nc3 {[%clk 0:02:58.6]} 7... Ng4 {[%clk 0:02:49.7]} 8. Bg5 {[%clk 0:02:34.9]}
8... Qb6 {[%clk 0:02:36.1]} 9. Be2 {[%clk 0:02:21]} 9... Nxd4 {[%clk 0:02:24.2]}
10. Bxg4 {[%clk 0:02:15]} 10... Bxg4 {[%clk 0:02:23.1]} 11. Qxg4 {[%clk
0:02:08.3]} 11... Nc2+ {[%clk 0:02:21.7]} 12. Kd2 {[%clk 0:02:08.2]} 12... Nxa1
{[%clk 0:02:20.3]} 13. Rxa1 {[%clk 0:02:06.8]} 13... Qxb2+ {[%clk 0:02:17.7]}
14. Kd3 {[%clk 0:02:06.2]} 14... Qxa1 {[%clk 0:02:09.3]} 15. Qe2 {[%clk
0:01:59.7]} 15... Bg7 {[%clk 0:02:01.8]} 16. Qc2 {[%clk 0:01:59.2]} 16... Qxc3+
{[%clk 0:02:01]} 17. Qxc3 {[%clk 0:01:59.2]} 17... Bxc3 {[%clk 0:02:01.9]} 18.
Kxc3 {[%clk 0:01:59.9]} 18... Kd7 {[%clk 0:02:01.7]} 19. Kd4 {[%clk 0:02:00.8]}
19... Rhc8 {[%clk 0:02:01.1]} 20. Be3 {[%clk 0:02:01.7]} 20... Rc6 {[%clk
0:01:56]} 21. Kd3 {[%clk 0:02:02.6]} 21... Rac8 {[%clk 0:01:55.6]} 22. Bd4
{[%clk 0:02:03.5]} 22... Rxc4 {[%clk 0:01:55.1]} 23. f3 {[%clk 0:02:04.4]} 23...
Rxd4+ {[%clk 0:01:54.8]} 24. Kxd4 {[%clk 0:02:04.1]} 24... Rc2 {[%clk
0:01:55.3]} 25. g4 {[%clk 0:02:03.4]} 25... Rxa2 {[%clk 0:01:54.5]} 26. g5
{[%clk 0:02:04.3]} 26... Rxh2 {[%clk 0:01:53.1]} 27. Ke3 {[%clk 0:02:05.2]}
27... a5 {[%clk 0:01:52.4]} 28. Kf4 {[%clk 0:02:06.1]} 28... a4 {[%clk
0:01:50.7]} 29. e5 {[%clk 0:02:07]} 29... dxe5+ {[%clk 0:01:49.6]} 30. Ke4
{[%clk 0:02:07]} 0-1

[Event "*** Titled Tuesday Blitz"]
[Site "Chess.com"]
[Date "2021.04.06"]
[Round "2"]
[White "horripile"]
[Black "CakeinSpace2002"]
[Result "1-0"]
[WhiteElo "2589"]
[BlackElo "2314"]
[TimeControl "180+1"]
[EndTime "10:14:38 PDT"]
[Termination "horripile won by resignation"]

1. e4 {[%clk 0:03:00.9]} 1... c5 {[%clk 0:03:00.3]} 2. Nf3 {[%clk 0:03:00.3]}
2... Nc6 {[%clk 0:03:00.4]} 3. Bb5 {[%clk 0:02:59.6]} 3... g6 {[%clk 0:02:59.4]}
4. O-O {[%clk 0:02:58.5]} 4... Bg7 {[%clk 0:02:59.6]} 5. Nc3 {[%clk 0:02:55.9]}
5... e5 {[%clk 0:02:55.9]} 6. Bc4 {[%clk 0:02:53.4]} 6... Nge7 {[%clk
0:02:54.5]} 7. a4 {[%clk 0:02:52.4]} 7... O-O {[%clk 0:02:54.1]} 8. d3 {[%clk
0:02:52.5]} 8... h6 {[%clk 0:02:53.6]} 9. Be3 {[%clk 0:02:49.1]} 9... d6 {[%clk
0:02:53.4]} 10. Nd5 {[%clk 0:02:49.6]} 10... Be6 {[%clk 0:02:49.9]} 11. c3
{[%clk 0:02:45.9]} 11... Kh7 {[%clk 0:02:46.4]} 12. Nxe7 {[%clk 0:02:43]} 12...
Qxe7 {[%clk 0:02:46.3]} 13. a5 {[%clk 0:02:41.2]} 13... f5 {[%clk 0:02:40.9]}
14. exf5 {[%clk 0:02:30.2]} 14... Bxf5 {[%clk 0:02:40.2]} 15. Nd2 {[%clk
0:02:25.4]} 15... Qd7 {[%clk 0:02:29.8]} 16. Ne4 {[%clk 0:02:20.8]} 16... b6
{[%clk 0:02:16.3]} 17. axb6 {[%clk 0:02:04]} 17... axb6 {[%clk 0:02:17.2]} 18.
Rxa8 {[%clk 0:02:01.5]} 18... Rxa8 {[%clk 0:02:18.1]} 19. Bd5 {[%clk 0:02:02]}
19... Be6 {[%clk 0:02:10.7]} 20. Qb3 {[%clk 0:02:00.6]} 20... Na5 {[%clk
0:02:03.2]} 21. Bxe6 {[%clk 0:01:57.5]} 21... Nxb3 {[%clk 0:02:03.2]} 22. Bxd7
{[%clk 0:01:57.5]} 22... Ra2 {[%clk 0:02:03.3]} 23. Rb1 {[%clk 0:01:54.6]} 23...
d5 {[%clk 0:02:03.1]} 24. Be6 {[%clk 0:01:54]} 24... dxe4 {[%clk 0:01:59.5]} 25.
Bxb3 {[%clk 0:01:53.7]} 25... Ra7 {[%clk 0:02:00.1]} 26. dxe4 {[%clk 0:01:53.8]}
26... b5 {[%clk 0:02:00.4]} 27. Bxc5 {[%clk 0:01:53]} 1-0

[Event "*** Titled Tuesday Blitz"]
[Site "Chess.com"]
[Date "2021.04.06"]
[Round "2"]
[White "Keks2017"]
[Black "K_A_S_T_O_R"]
[Result "0-1"]
[WhiteElo "2530"]
[BlackElo "2812"]
[TimeControl "180+1"]
[EndTime "10:14:44 PDT"]
[Termination "K_A_S_T_O_R won by resignation"]

1. g3 {[%clk 0:03:00.1]} 1... d5 {[%clk 0:02:57.6]} 2. Bg2 {[%clk 0:03:00.2]}
2... c6 {[%clk 0:02:58]} 3. d3 {[%clk 0:03:00.3]} 3... e5 {[%clk 0:02:57.5]} 4.
Nd2 {[%clk 0:02:59.5]} 4... Nf6 {[%clk 0:02:55.5]} 5. e4 {[%clk 0:02:59.5]} 5...
dxe4 {[%clk 0:02:54.2]} 6. dxe4 {[%clk 0:02:58.9]} 6... Qc7 {[%clk 0:02:53.5]}
7. Ngf3 {[%clk 0:02:58.8]} 7... Be7 {[%clk 0:02:53.3]} 8. O-O {[%clk 0:02:58.7]}
8... Nbd7 {[%clk 0:02:53.1]} 9. b3 {[%clk 0:02:58.4]} 9... a6 {[%clk 0:02:47]}
10. Bb2 {[%clk 0:02:58]} 10... b5 {[%clk 0:02:46.6]} 11. a4 {[%clk 0:02:57.4]}
11... Bb7 {[%clk 0:02:46.4]} 12. Qe2 {[%clk 0:02:56.3]} 12... O-O {[%clk
0:02:45.7]} 13. Nh4 {[%clk 0:02:56.3]} 13... g6 {[%clk 0:02:44.6]} 14. Kh1
{[%clk 0:02:55.6]} 14... Rfe8 {[%clk 0:02:34.5]} 15. Nhf3 {[%clk 0:02:41.5]}
15... Bc5 {[%clk 0:02:32.8]} 16. Ne1 {[%clk 0:02:39.9]} 16... Bd4 {[%clk
0:02:31]} 17. c3 {[%clk 0:02:38.2]} 17... Bb6 {[%clk 0:02:28.9]} 18. b4 {[%clk
0:02:38]} 18... c5 {[%clk 0:02:26.6]} 19. axb5 {[%clk 0:02:34.5]} 19... axb5
{[%clk 0:02:25.7]} 20. Qxb5 {[%clk 0:02:29.7]} 20... Rxa1 {[%clk 0:02:24.8]} 21.
Bxa1 {[%clk 0:02:29.3]} 21... Ra8 {[%clk 0:02:25.2]} 22. Nc2 {[%clk 0:02:08]}
22... Ra2 {[%clk 0:02:24.1]} 23. Qd3 {[%clk 0:01:55.6]} 23... c4 {[%clk
0:02:21.7]} 24. Nxc4 {[%clk 0:01:50.1]} 24... Ba6 {[%clk 0:02:21.7]} 25. N2e3
{[%clk 0:01:28.4]} 25... Bxe3 {[%clk 0:02:20.5]} 26. Qxe3 {[%clk 0:01:28.3]}
26... Bxc4 {[%clk 0:02:19.2]} 27. Rd1 {[%clk 0:01:27.8]} 27... Ng4 {[%clk
0:02:19]} 0-1